bitfinex/quotes_BTCUSD_20220226
["timestamp","ask_amount","ask_price","bid_price","bid_amount"]
[1645909024339,0.06264462,39433.0,39431.0,0.09460319]
[1645909024738,0.06364462,39433.0,39431.0,0.09460319]
[1645909025688,0.378671,39432.0,39431.0,0.09460319]
[1645909026088,0.06264462,39433.0,39431.0,0.09460319]
[1645909026490,0.378671,39432.0,39431.0,0.09460319]
[1645909026694,0.06364462,39433.0,39431.0,0.09460319]
[1645909027289,0.06364462,39433.0,39431.0,0.09415189]
[1645909027889,0.06264462,39433.0,39431.0,0.09415189]
[1645909028092,0.4998,39434.0,39431.0,0.09415189]
[1645909028692,0.5008,39434.0,39431.0,0.09415189]
[1645909029934,0.4998,39434.0,39431.0,0.09415189]
[1645909030635,0.87540723,39434.0,39431.0,0.09415189]
[1645909031938,0.87440723,39434.0,39431.0,0.09415189]
[1645909032736,0.87540723,39434.0,39431.0,0.09415189]
[1645909033885,0.37460723,39433.0,39431.0,0.09415189]
[1645909034784,0.37560723,39433.0,39431.0,0.09415189]
[1645909035386,0.43906623,39433.0,39431.0,0.09415189]
[1645909035783,0.37460723,39432.0,39431.0,0.09415189]
[1645909036585,0.37560723,39432.0,39431.0,0.09415189]
[1645909037632,0.75427823,39432.0,39431.0,0.09415189]
[1645909037834,0.75327823,39432.0,39431.0,0.09415189]
[1645909038034,0.02678706,39432.0,39431.0,0.04415189]
[1645909038233,0.40545806,39432.0,39431.0,0.04415189]
[1645909038435,0.02678706,39432.0,39431.0,0.04415189]
[1645909038635,0.40645806,39432.0,39431.0,0.04415189]
[1645909038841,0.40645806,39432.0,39421.0,0.1135]
[1645909038842,0.18386931,39426.0,39421.0,0.1135]
[1645909039036,0.71381722,39432.0,39418.0,0.1803]
[1645909039037,0.154655,39425.0,39418.0,0.1803]
[1645909039237,0.0509,39424.0,39417.0,0.1833]
[1645909039434,0.0509,39424.0,39416.0,0.12823]
[1645909039440,0.0509,39424.0,39416.0,0.1181]
[1645909039635,0.0509,39424.0,39418.0,0.22435385]
[1645909039840,0.0509,39424.0,39416.0,0.1181]
[1645909040241,0.02652955,39424.0,39416.0,0.1181]
[1645909040689,0.02752955,39424.0,39416.0,0.1181]
[1645909040888,0.09100355,39424.0,39416.0,0.1181]
[1645909041888,0.09000355,39424.0,39416.0,0.34021491]
[1645909042493,0.09000355,39424.0,39416.0,0.1181]
[1645909042690,0.378671,39423.0,39416.0,0.1181]
[1645909042891,0.0509,39422.0,39416.0,0.1181]
[1645909043297,0.0509,39422.0,39414.0,1.1048117]
[1645909043497,0.06348,39420.0,39414.0,1.1048117]
[1645909043692,0.0509,39419.0,39414.0,1.1048117]
[1645909044335,0.378671,39418.0,39414.0,1.1048117]
[1645909045144,0.0519,39419.0,39414.0,1.1048117]
[1645909045838,0.0509,39419.0,39414.0,1.1048117]
[1645909046639,0.0519,39419.0,39414.0,1.1048117]
[1645909046841,0.0519,39419.0,39417.0,0.16842785]
[1645909047041,0.0519,39419.0,39418.0,0.18134]
[1645909047240,0.37504868,39426.0,39419.0,0.5538]
[1645909047440,0.42594868,39426.0,39419.0,0.1038]
[1645909047648,0.378671,39425.0,39419.0,0.1038]
[1645909047840,0.0509,39424.0,39419.0,0.1038]
[1645909048686,0.0519,39424.0,39419.0,0.1038]
[1645909048888,0.0519,39424.0,39420.0,0.3]
[1645909049087,0.001,39424.0,39420.0,0.3]
[1645909049885,0.37504868,39429.0,39423.0,0.23801461]
[1645909050086,0.378671,39428.0,39423.0,0.23801461]
[1645909050492,0.378671,39428.0,39424.0,0.21932699]
[1645909050686,0.380671,39428.0,39423.0,0.23801461]
[1645909050887,0.378671,39427.0,39423.0,0.23801461]
[1645909051086,0.002,39428.0,39423.0,0.23801461]
[1645909051489,0.37704868,39428.0,39423.0,0.23801461]
[1645909051938,0.378671,39427.0,39423.0,0.23801461]
[1645909052138,0.378671,39425.0,39423.0,0.23801461]
[1645909052338,0.378671,39427.0,39423.0,0.23801461]
[1645909052638,0.002,39425.0,39419.0,0.1038]
[1645909052843,0.002,39425.0,39420.0,0.18466806]
[1645909053439,0.002,39425.0,39420.0,0.23449836]
[1645909054042,0.32338142,39425.0,39420.0,0.23449836]
[1645909054444,0.32338142,39425.0,39420.0,0.45464806]
[1645909054646,0.32438142,39425.0,39419.0,0.1038]
[1645909055243,0.32138142,39424.0,39419.0,0.1038]
[1645909055893,0.32138142,39425.0,39419.0,0.1038]
[1645909058696,0.32338142,39425.0,39419.0,0.1038]
[1645909059097,0.002,39425.0,39419.0,0.1038]
[1645909059543,0.002,39425.0,39421.0,0.21482807]
[1645909060038,0.00213756,39426.0,39421.0,0.21482807]
[1645909060647,0.00313756,39426.0,39421.0,0.21482807]
[1645909062139,0.00213756,39426.0,39419.0,0.1038]
[1645909062838,0.00313756,39426.0,39420.0,0.1]
[1645909063294,0.00313756,39426.0,39421.0,0.2094365]
[1645909063488,0.00313756,39426.0,39420.0,0.1]
[1645909063888,0.00213756,39426.0,39420.0,0.1]
[1645909064098,0.378671,39425.0,39420.0,0.1]
[1645909064288,0.442143,39425.0,39420.0,0.1]
[1645909064589,0.86809168,39425.0,39420.0,0.1]
[1645909064790,0.37504868,39424.0,39420.0,0.1]
[1645909064989,0.154655,39423.0,39420.0,0.1]
[1645909065289,0.52970368,39423.0,39420.0,0.1]
[1645909066092,0.37504868,39422.0,39420.0,0.1]
[1645909066292,0.429571,39421.0,39420.0,0.1]
[1645909067338,0.80461968,39421.0,39420.0,0.1]
[1645909067537,0.85461968,39421.0,39420.0,0.1]
[1645909067937,0.479571,39421.0,39420.0,0.1]
[1645909068339,0.479571,39421.0,39420.0,0.08262906]
[1645909068340,0.79829543,39421.0,39420.0,0.08262906]
[1645909068737,0.79929543,39421.0,39420.0,0.08262906]
[1645909069140,0.79929543,39421.0,39420.0,0.00311977]
[1645909069341,1.54709168,39421.0,39420.0,0.00311977]
[1645909069740,0.45,39420.0,39408.0,0.00043761]
[1645909070046,0.50567,39412.0,39408.0,0.00043761]
[1645909070240,0.103755,39410.0,39406.0,0.0304366]
[1645909070440,0.0509,39409.0,39408.0,0.00043759]
[1645909070688,0.429571,39409.0,39408.0,0.00043759]
[1645909071388,0.429571,39409.0,39406.0,0.0304366]
[1645909071589,0.429571,39409.0,39407.0,0.00043758]
[1645909072588,0.429571,39409.0,39406.0,0.0304366]
[1645909072787,0.430571,39409.0,39406.0,0.0304366]
[1645909073194,0.480571,39409.0,39406.0,0.0304366]
[1645909073988,0.479571,39409.0,39406.0,0.0304366]
[1645909074845,0.48234081,39409.0,39408.0,0.00433622]
[1645909076048,0.48134081,39409.0,39408.0,0.00433622]
[1645909076847,0.48234081,39409.0,39408.0,0.00433622]
[1645909078085,0.48134081,39409.0,39408.0,0.00433622]
[1645909078887,0.48234081,39409.0,39408.0,0.00433622]
[1645909079587,0.43234081,39409.0,39408.0,0.00433622]
[1645909079787,0.05366981,39409.0,39408.0,0.00433622]
[1645909079988,0.05266981,39409.0,39408.0,0.00433622]
[1645909080387,0.00176981,39409.0,39408.0,0.00433622]
[1645909080788,0.00476981,39409.0,39408.0,0.00433622]
[1645909082040,0.00176981,39409.0,39408.0,0.00433622]
[1645909083043,0.00276981,39409.0,39408.0,0.00433622]
[1645909083445,0.38144081,39409.0,39408.0,0.00433622]
[1645909084343,0.38044081,39409.0,39408.0,0.00433622]
[1645909084744,0.38144081,39409.0,39408.0,0.00433622]
[1645909085809,0.43144081,39409.0,39408.0,0.00433622]
[1645909086007,0.43044081,39409.0,39408.0,0.00433622]
[1645909086207,0.48134081,39409.0,39408.0,0.00433622]
[1645909086811,0.48234081,39409.0,39408.0,0.00433622]
[1645909088110,0.65093377,39409.0,39408.0,0.00433622]
[1645909088714,1.06794845,39409.0,39407.0,0.00042459]
[1645909088911,0.103755,39407.0,39406.0,0.0148254]
[1645909089112,0.8,39406.0,39401.0,0.00169863]
[1645909089360,0.76856918,39405.0,39401.0,0.00169863]
[1645909089652,0.8289315,39405.0,39393.0,0.1187]
[1645909089852,0.81843677,39405.0,39393.0,0.1187]
[1645909090153,0.2302214,39401.0,39391.0,0.01]
[1645909090351,0.063523,39398.0,39391.0,0.01]
[1645909090551,0.429571,39397.0,39391.0,0.01]
[1645909090753,0.479571,39397.0,39391.0,0.01]
[1645909092053,0.479571,39397.0,39392.0,0.00029733]
[1645909092853,0.480571,39397.0,39392.0,0.00029733]
[1645909093088,0.544094,39397.0,39391.0,0.01]
[1645909093296,0.607618,39397.0,39393.0,0.00043765]
[1645909094094,0.606618,39397.0,39393.0,0.00043765]
[1645909094402,0.606618,39397.0,39391.0,0.01]
[1645909094403,0.063524,39394.0,39391.0,0.01]
[1645909094593,0.167279,39394.0,39393.0,0.00043764]
[1645909094892,0.518179,39394.0,39393.0,0.00043764]
[1645909095094,0.568179,39394.0,39393.0,0.00043764]
[1645909095494,0.568179,39394.0,39391.0,0.01]
[1645909095692,0.568179,39394.0,39392.0,0.00043765]
[1645909095892,0.268179,39394.0,39392.0,0.00043765]
[1645909096092,0.678671,39393.0,39392.0,0.00043765]
[1645909096292,0.729571,39393.0,39392.0,0.00043765]
[1645909096693,0.429571,39393.0,39391.0,0.01]
[1645909096944,0.103755,39392.0,39391.0,0.01043766]
[1645909097142,0.154655,39392.0,39391.0,0.01043766]
[1645909097941,0.154655,39392.0,39391.0,0.01]
[1645909098946,0.155655,39392.0,39391.0,0.01]
[1645909099344,0.455655,39392.0,39391.0,0.01]
[1645909099843,0.155655,39392.0,39391.0,0.01]
[1645909100044,0.154655,39392.0,39391.0,0.01]
[1645909100895,0.155655,39392.0,39391.0,0.01]
[1645909102296,0.154655,39392.0,39391.0,0.01]
[1645909102494,0.454655,39392.0,39391.0,0.01]
[1645909102902,0.455655,39392.0,39391.0,0.01]
[1645909104743,0.454655,39392.0,39391.0,0.01]
[1645909104942,0.455655,39392.0,39391.0,0.01]
[1645909105542,0.45714965,39392.0,39391.0,0.01]
[1645909105744,0.15714965,39392.0,39391.0,0.01]
[1645909106141,0.15614965,39392.0,39391.0,0.23148399]
[1645909106941,0.15814965,39392.0,39391.0,0.23148399]
[1645909107142,0.15814965,39392.0,39391.0,0.0095515]
[1645909108191,0.15614965,39392.0,39391.0,0.0095515]
[1645909108993,0.15814965,39392.0,39391.0,0.0095515]
[1645909110391,0.15614965,39392.0,39391.0,0.0095515]
[1645909110992,0.15714965,39392.0,39391.0,0.0095515]
[1645909111593,0.20714965,39392.0,39391.0,0.0095515]
[1645909112253,0.20614965,39392.0,39391.0,0.0095515]
[1645909113155,0.20714965,39392.0,39391.0,0.0095515]
[1645909114154,0.20614965,39392.0,39391.0,0.0095515]
[1645909114958,0.20714965,39392.0,39391.0,0.0095515]
[1645909115991,0.20674465,39392.0,39391.0,0.0095515]
[1645909116991,0.20774465,39392.0,39391.0,0.0095515]
[1645909117792,0.15814965,39392.0,39391.0,0.24900611]
[1645909118000,0.00349465,39392.0,39391.0,0.24900611]
[1645909118196,0.00349465,39392.0,39391.0,0.42710969]
[1645909118399,0.00149465,39392.0,39391.0,0.42710969]
[1645909118594,0.00149465,39392.0,39391.0,0.41710969]
[1645909118994,0.00349465,39392.0,39391.0,0.41710969]
[1645909119641,0.00349465,39392.0,39391.0,0.23900611]
[1645909120243,0.00149465,39392.0,39391.0,0.23900611]
[1645909120744,0.00149465,39392.0,39391.0,0.4286861]
[1645909121143,0.00249465,39392.0,39391.0,0.4286861]
[1645909121342,0.00140423,39393.0,39392.0,0.5049893]
[1645909121541,0.00140423,39393.0,39392.0,0.0049893]
[1645909123190,0.00240423,39393.0,39392.0,0.0049893]
[1645909123794,0.00240423,39393.0,39392.0,0.3836603]
[1645909124195,0.00240423,39393.0,39392.0,0.0049893]
[1645909124395,0.00140423,39393.0,39392.0,0.0049893]
[1645909124594,0.063516,39397.0,39392.0,0.0049893]
[1645909124993,0.001,39393.0,39392.0,0.0049893]
[1645909125595,0.001,39393.0,39392.0,0.2072224]
[1645909126195,0.001,39393.0,39392.0,0.0049893]
[1645909126395,0.063516,39397.0,39392.0,0.0049893]
[1645909126844,0.063516,39397.0,39392.0,0.00485846]
[1645909127045,0.064516,39397.0,39393.0,0.00039006]
[1645909127444,0.378671,39396.0,39393.0,0.00039006]
[1645909127745,0.064516,39397.0,39393.0,0.00039006]
[1645909128144,0.064516,39397.0,39392.0,0.00485846]
[1645909128345,0.063516,39397.0,39393.0,0.00039336]
[1645909129148,0.678671,39396.0,39393.0,0.00039336]
[1645909129347,1.05343686,39396.0,39393.0,0.00039336]
[1645909129547,0.67476586,39396.0,39393.0,0.00039336]
[1645909130988,0.67576586,39396.0,39393.0,0.00039336]
[1645909131588,0.001,39396.0,39392.0,0.00485846]
[1645909131787,0.001,39396.0,39393.0,0.00042973]
[1645909132189,0.43828186,39397.0,39393.0,0.00042973]
[1645909132891,0.37476586,39396.0,39392.0,0.17398361]
[1645909133093,0.37476586,39396.0,39393.0,0.00042973]
[1645909133695,0.37476586,39396.0,39393.0,0.21380007]
[1645909133890,0.37476586,39395.0,39393.0,0.00042973]
[1645909134092,0.37476586,39395.0,39392.0,0.17398361]
[1645909134346,0.37476586,39395.0,39393.0,0.00042973]
[1645909134546,0.37476586,39396.0,39393.0,0.00042973]
[1645909134744,0.00139187,39395.0,39393.0,0.00042973]
[1645909134947,0.37615773,39395.0,39393.0,0.00042973]
[1645909135144,0.37715773,39395.0,39393.0,0.00042973]
[1645909135345,0.37715773,39395.0,39392.0,0.3405099]
[1645909135546,0.32179867,39393.0,39392.0,0.17442072]
[1645909136147,0.37715773,39395.0,39392.0,0.17442072]
[1645909136349,0.37615773,39395.0,39392.0,0.17398361]
[1645909136547,0.37615773,39395.0,39392.0,0.17442072]
[1645909137147,0.37476586,39394.0,39392.0,0.17442072]
[1645909137347,0.00239187,39395.0,39392.0,0.17442072]
[1645909137348,0.32181673,39393.0,39392.0,0.17442072]
[1645909137549,0.32181673,39393.0,39392.0,0.17398361]
[1645909137949,0.37715773,39395.0,39392.0,0.17398361]
[1645909138191,0.37715773,39395.0,39392.0,0.16912515]
[1645909138392,0.32182463,39393.0,39392.0,0.16898361]
[1645909138594,0.32182463,39393.0,39392.0,0.54765461]
[1645909139195,0.32421385,39393.0,39392.0,0.54765461]
[1645909139392,0.00238922,39393.0,39392.0,0.16898361]
[1645909139592,0.00238922,39393.0,39392.0,0.54765461]
[1645909139793,0.32421385,39393.0,39392.0,0.84765461]
[1645909139994,0.00102781,39393.0,39392.0,0.84765461]
[1645909141193,0.00302781,39393.0,39392.0,0.84765461]
[1645909142441,0.00102781,39393.0,39392.0,0.84765461]
[1645909143040,0.00302781,39393.0,39392.0,0.84765461]
[1645909143640,0.00302781,39393.0,39392.0,0.54765461]
[1645909144245,0.00302781,39393.0,39392.0,0.378671]
[1645909144443,0.00102781,39393.0,39391.0,0.00043712]
[1645909144941,0.00102781,39393.0,39387.0,0.378671]
[1645909145142,0.00463506,39393.0,39390.0,0.00043712]
[1645909145341,0.32645969,39393.0,39391.0,0.378671]
[1645909145601,0.32182463,39392.0,39390.0,0.00043712]
[1645909145996,0.32182463,39392.0,39386.0,0.01014]
[1645909145997,0.32182463,39392.0,39387.0,0.378671]
[1645909146195,0.32182463,39392.0,39389.0,0.00041599]
[1645909147196,0.32282463,39392.0,39385.0,0.418]
[1645909147396,0.32282463,39392.0,39389.0,0.000416]
[1645909147795,0.32182463,39391.0,39389.0,0.000416]
[1645909148396,0.32182463,39391.0,39385.0,0.378671]
[1645909148594,0.32182463,39391.0,39388.0,0.000416]
[1645909149096,0.32418538,39391.0,39388.0,0.000416]
[1645909149545,0.00236075,39391.0,39388.0,0.000416]
[1645909149745,0.00236075,39391.0,39387.0,0.378671]
[1645909149946,0.00236075,39391.0,39388.0,0.00041087]
[1645909150345,0.00136075,39391.0,39388.0,0.00041087]
[1645909150945,0.00136075,39391.0,39386.0,0.19222631]
[1645909151145,0.00336075,39391.0,39388.0,0.00041087]
[1645909152047,0.00336075,39391.0,39383.0,0.3]
[1645909152246,0.00336075,39391.0,39388.0,0.00041087]
[1645909152445,0.00136075,39391.0,39388.0,0.00041087]
[1645909153091,0.00336075,39391.0,39388.0,0.00041087]
[1645909153292,0.00336075,39391.0,39385.0,0.17910386]
[1645909153493,0.00336075,39391.0,39388.0,0.00041169]
[1645909154398,0.00136075,39391.0,39384.0,0.378671]
[1645909154592,0.00136075,39391.0,39388.0,0.00041169]
[1645909155594,0.00136075,39391.0,39382.0,0.35]
[1645909155794,0.00136075,39391.0,39388.0,0.00041169]
[1645909156847,0.00136075,39391.0,39385.0,0.378671]
[1645909157051,0.00136075,39391.0,39388.0,0.00041116]
[1645909157250,0.00436075,39391.0,39388.0,0.00041116]
[1645909158049,0.00436075,39391.0,39384.0,0.17059419]
[1645909158249,0.00436075,39391.0,39388.0,0.00041116]
[1645909158951,0.00136075,39391.0,39388.0,0.00041116]
[1645909159154,0.00436075,39391.0,39384.0,0.17059419]
[1645909159352,0.00436075,39391.0,39388.0,0.00041116]
[1645909160354,0.00136075,39391.0,39384.0,0.17059419]
[1645909160588,0.00136075,39391.0,39388.0,0.0004112]
[1645909161189,0.00436075,39391.0,39388.0,0.0004112]
[1645909161692,0.00436075,39391.0,39383.0,0.3]
[1645909161892,0.00436075,39391.0,39388.0,0.0004112]
[1645909162290,0.18645217,39391.0,39388.0,0.0004112]
[1645909162493,0.18345217,39391.0,39388.0,0.0004112]
[1645909162898,0.18345217,39391.0,39381.0,0.4926]
[1645909163098,0.56021803,39391.0,39388.0,0.00030906]
[1645909163293,0.18545217,39391.0,39388.0,0.00030906]
[1645909163593,0.56021803,39391.0,39388.0,0.00030906]
[1645909163791,0.18545217,39391.0,39388.0,0.00030906]
[1645909163991,0.00336075,39391.0,39384.0,0.19678123]
[1645909164441,0.37612661,39391.0,39381.0,0.1926]
[1645909164643,0.00136075,39391.0,39381.0,0.1926]
[1645909164840,0.37612661,39391.0,39381.0,0.1926]
[1645909165343,0.37612661,39391.0,39382.0,0.3]
[1645909165542,0.37612661,39391.0,39381.0,0.1926]
[1645909165742,0.0509,39390.0,39381.0,0.1926]
[1645909165941,0.42566586,39390.0,39381.0,0.1926]
[1645909166342,0.21058229,39387.0,39380.0,0.20074]
[1645909166543,0.26148229,39387.0,39380.0,0.20074]
[1645909166744,0.26148229,39387.0,39380.0,0.01014]
[1645909167146,0.63724815,39387.0,39380.0,0.01014]
[1645909167346,0.63716811,39387.0,39380.0,0.01014]
[1645909167543,0.63716811,39387.0,39380.0,0.00014]
[1645909167943,0.63716811,39387.0,39382.0,0.00043719]
[1645909168497,0.378671,39386.0,39382.0,0.00043719]
[1645909168799,0.378671,39382.0,39374.0,0.502]
[1645909168997,0.0509,39381.0,39374.0,0.1192]
[1645909169896,0.0509,39381.0,39375.0,0.378671]
[1645909170497,0.0509,39381.0,39375.0,0.58808979]
[1645909170699,0.0509,39381.0,39377.0,0.21202167]
[1645909171097,0.0519,39381.0,39377.0,0.21202167]
[1645909171845,0.0519,39381.0,39375.0,0.20941879]
[1645909172047,0.0519,39381.0,39374.0,0.1192]
[1645909172448,0.0509,39381.0,39374.0,0.1192]
[1645909172649,0.0509,39381.0,39374.0,0.11963708]
[1645909172847,0.00043702,39379.0,39374.0,0.11963708]
[1645909173049,0.0509,39381.0,39379.0,0.00087403]
[1645909173248,0.0519,39381.0,39379.0,0.00087403]
[1645909174450,0.0509,39381.0,39379.0,0.00087403]
[1645909175353,0.001,39381.0,39379.0,0.00087403]
[1645909175996,0.0169,39386.0,39379.0,0.00087403]
[1645909177296,0.0179,39386.0,39379.0,0.00087403]
[1645909177500,0.00043698,39384.0,39379.0,0.00087403]
[1645909178499,0.0169,39386.0,39379.0,0.00087403]
[1645909178698,0.00043699,39383.0,39379.0,0.00087403]
[1645909179844,0.000437,39383.0,39379.0,0.00087403]
[1645909180840,0.06494337,39385.0,39379.0,0.00087403]
[1645909181041,0.000437,39383.0,39379.0,0.00087403]
[1645909181243,0.001437,39383.0,39379.0,0.00087403]
[1645909182040,0.001,39383.0,39379.0,0.00087403]
[1645909182540,0.000437,39383.0,39379.0,0.00087403]
[1645909183190,0.001,39383.0,39379.0,0.00087403]
[1645909183592,0.001437,39383.0,39379.0,0.00087403]
[1645909184390,0.06494337,39385.0,39379.0,0.00087403]
[1645909184793,0.000437,39383.0,39379.0,0.00087403]
[1645909185695,0.06594337,39385.0,39379.0,0.00087403]
[1645909185894,0.000437,39383.0,39379.0,0.00087403]
[1645909186940,0.06494337,39385.0,39379.0,0.00087403]
[1645909187140,0.001437,39383.0,39379.0,0.00087403]
[1645909188040,0.001,39383.0,39379.0,0.00087403]
[1645909188241,0.001437,39383.0,39379.0,0.00087403]
[1645909189041,0.000437,39383.0,39379.0,0.00087403]
[1645909189242,0.001,39383.0,39379.0,0.00087403]
[1645909189443,0.001437,39383.0,39379.0,0.00087403]
[1645909190445,0.06494337,39385.0,39379.0,0.00087403]
[1645909190693,0.000437,39383.0,39379.0,0.00087403]
[1645909191694,0.06694337,39385.0,39379.0,0.00087403]
[1645909191895,0.000437,39383.0,39379.0,0.00087403]
[1645909192904,0.06494337,39385.0,39379.0,0.00087403]
[1645909193104,0.000437,39383.0,39379.0,0.00087403]
[1645909193300,0.001437,39383.0,39379.0,0.00087403]
[1645909193999,0.001,39383.0,39379.0,0.00087403]
[1645909194444,0.000437,39383.0,39379.0,0.00087403]
[1645909194650,0.00033763,39383.0,39379.0,0.00087403]
[1645909195244,0.001,39383.0,39379.0,0.00087403]
[1645909195844,0.378671,39382.0,39379.0,0.00087403]
[1645909196047,0.001,39383.0,39379.0,0.00087403]
[1645909196246,0.378671,39382.0,39379.0,0.00087403]
[1645909196646,0.167299,39380.0,39379.0,0.00087403]
[1645909196847,0.063544,39380.0,39379.0,0.00087403]
[1645909197046,0.442215,39380.0,39379.0,0.00087403]
[1645909197246,0.443215,39380.0,39379.0,0.00087403]
[1645909197648,0.219199,39380.0,39379.0,0.00087403]
[1645909197849,0.319199,39380.0,39379.0,0.00087403]
[1645909198099,0.69396486,39380.0,39379.0,0.00087403]
[1645909198305,1.28978272,39380.0,39379.0,0.00087403]
[1645909198498,0.79314252,39380.0,39379.0,0.00087403]
[1645909198698,1.2893175,39380.0,39379.0,0.00087403]
[1645909198901,0.79314448,39380.0,39379.0,0.00087403]
[1645909199099,0.95295013,39380.0,39379.0,0.00087403]
[1645909199300,0.73218136,39380.0,39379.0,0.00087403]
[1645909199498,1.06953222,39380.0,39379.0,0.00087403]
[1645909199699,0.91072657,39380.0,39379.0,0.00087403]
[1645909199900,1.06953222,39380.0,39379.0,0.00087403]
[1645909200099,0.85328878,39380.0,39379.0,0.00087403]
[1645909200501,0.85228878,39380.0,39379.0,0.00087403]
[1645909201301,0.85328878,39380.0,39379.0,0.00087403]
[1645909201703,0.319199,39380.0,39379.0,0.00087403]
[1645909201963,0.544115,39380.0,39379.0,0.00087403]
[1645909202159,0.01510494,39380.0,39379.0,0.00087403]
[1645909202363,0.01410494,39380.0,39379.0,0.00087403]
[1645909203158,0.01610494,39380.0,39379.0,0.00087403]
[1645909204161,0.39477594,39380.0,39379.0,0.00087403]
[1645909204561,0.07964994,39380.0,39379.0,0.00087403]
[1645909204961,0.07764994,39380.0,39379.0,0.00087403]
[1645909205162,0.07864994,39380.0,39379.0,0.00087403]
[1645909206096,0.01510494,39380.0,39379.0,0.00087403]
[1645909206492,0.01410494,39380.0,39379.0,0.00087403]
[1645909207192,0.01510494,39380.0,39379.0,0.00087403]
[1645909209440,0.01681696,39380.0,39379.0,0.00087403]
[1645909210240,0.3385725,39380.0,39379.0,0.00087403]
[1645909210438,0.01581696,39380.0,39379.0,0.00087403]
[1645909211440,0.01681696,39380.0,39379.0,0.00087403]
[1645909212441,0.01581696,39380.0,39379.0,0.00087403]
[1645909213306,0.01681696,39380.0,39379.0,0.00087403]
[1645909213709,0.31681696,39380.0,39379.0,0.00087403]
[1645909213907,0.38036396,39380.0,39379.0,0.00087403]
[1645909214506,0.08036396,39380.0,39379.0,0.00087403]
[1645909214706,0.38036396,39380.0,39379.0,0.00087403]
[1645909215108,0.37936396,39380.0,39379.0,0.00087403]
[1645909215308,1.27927803,39380.0,39379.0,0.00087403]
[1645909215509,0.9039939,39380.0,39379.0,0.00087403]
[1645909215706,1.06279955,39380.0,39379.0,0.00087403]
[1645909215908,0.6290779,39380.0,39379.0,0.00087403]
[1645909216107,0.78788355,39380.0,39379.0,0.00087403]
[1645909216312,0.6290779,39380.0,39379.0,0.00087403]
[1645909216508,0.6280779,39380.0,39379.0,0.00087403]
[1645909217148,1.2637779,39380.0,39379.0,0.00087403]
[1645909217347,1.6586152,39380.0,39379.0,0.00087403]
[1645909217546,0.22441922,39376.0,39375.0,0.00043686]
[1645909217749,1.57046475,39376.0,39375.0,0.00043686]
[1645909218148,0.103755,39375.0,39372.0,0.04]
[1645909218348,0.378671,39373.0,39372.0,0.04]
[1645909218549,0.779571,39373.0,39372.0,0.04]
[1645909218747,1.06550965,39373.0,39372.0,0.04]
[1645909218953,1.44095205,39373.0,39372.0,0.04]
[1645909219353,1.46929897,39373.0,39372.0,0.04]
[1645909219553,1.45605699,39373.0,39372.0,0.04]
[1645909219753,1.1492129,39373.0,39372.0,0.04]
[1645909219950,1.4560342,39373.0,39372.0,0.04]
[1645909220150,1.08061459,39373.0,39372.0,0.04]
[1645909220350,1.12766264,39373.0,39372.0,0.04]
[1645909220800,1.4559976,39373.0,39372.0,0.04]
[1645909221000,1.12765336,39373.0,39372.0,0.04]
[1645909221201,1.12665336,39373.0,39372.0,0.04]
[1645909221401,1.12765336,39373.0,39372.0,0.04]
[1645909221605,1.14017458,39373.0,39372.0,0.04]
[1645909221803,1.23765336,39373.0,39372.0,0.04]
[1645909222003,1.13765336,39373.0,39372.0,0.04]
[1645909222602,1.46494884,39373.0,39372.0,0.04]
[1645909223207,1.45494884,39373.0,39372.0,0.04]
[1645909223407,1.45766086,39373.0,39372.0,0.04]
[1645909224476,1.45766086,39373.0,39371.0,0.00043688]
[1645909224477,0.217324,39372.0,39371.0,0.00043688]
[1645909224670,0.9435169,39372.0,39371.0,0.00043688]
[1645909224872,0.18625522,39368.0,39365.0,0.04696622]
[1645909225071,0.063569,39366.0,39365.0,0.0017478]
[1645909225271,0.44224,39366.0,39361.0,0.01]
[1645909225472,0.063569,39366.0,39361.0,0.01]
[1645909225871,0.00010607,39365.0,39361.0,0.01]
[1645909226070,0.00010607,39365.0,39358.0,0.1756]
[1645909226474,0.01410494,39362.0,39358.0,0.1756]
[1645909226673,0.00010607,39365.0,39358.0,0.1756]
[1645909227273,0.00110607,39365.0,39358.0,0.1756]
[1645909227977,0.01410494,39362.0,39360.0,0.00043697]
[1645909228201,0.07767694,39362.0,39360.0,0.00043697]
[1645909228400,0.063572,39362.0,39360.0,0.00043697]
[1645909228603,0.30085601,39361.0,39360.0,0.00043697]
[1645909228801,0.35261202,39361.0,39360.0,0.00043697]
[1645909229002,0.2312699,39358.0,39354.0,0.01016]
[1645909229207,0.00171202,39361.0,39359.0,0.34144292]
[1645909229412,0.429571,39360.0,39359.0,0.34144292]
[1645909229603,0.779571,39360.0,39359.0,0.34144292]
[1645909229802,0.829571,39360.0,39359.0,0.34144292]
[1645909230002,1.11554165,39360.0,39359.0,0.34144292]
[1645909230304,0.956736,39360.0,39359.0,0.34144292]
[1645909230501,1.11554165,39360.0,39359.0,0.34144292]
[1645909230702,1.17912565,39360.0,39359.0,0.34144292]
[1645909231104,1.19323059,39360.0,39359.0,0.34144292]
[1645909231305,1.19423059,39360.0,39359.0,0.34144292]
[1645909233050,1.20721307,39360.0,39359.0,0.34144292]
[1645909233251,1.20821307,39360.0,39359.0,0.34144292]
[1645909233653,1.19423059,39360.0,39359.0,0.34144292]
[1645909234056,1.19594261,39360.0,39359.0,0.34144292]
[1645909234653,1.19494261,39360.0,39359.0,0.34144292]
[1645909235257,1.19594261,39360.0,39359.0,0.34046974]
[1645909235706,1.20517406,39360.0,39359.0,0.34046974]
[1645909236404,1.29442406,39360.0,39359.0,0.34046974]
[1645909236605,1.32321406,39360.0,39359.0,0.34046974]
[1645909237306,1.32421406,39360.0,39359.0,0.34046974]
[1645909238311,1.31498261,39360.0,39359.0,0.34046974]
[1645909238514,1.32495641,39360.0,39359.0,0.34046974]
[1645909238713,1.31398261,39360.0,39359.0,0.34046974]
[1645909238911,1.32407256,39360.0,39359.0,0.34046974]
[1645909239343,1.32507256,39360.0,39359.0,0.34046974]
[1645909239747,1.31498261,39360.0,39359.0,0.34046974]
[1645909239947,1.29461226,39360.0,39359.0,0.33046974]
[1645909240144,1.28519261,39360.0,39359.0,0.33046974]
[1645909240345,1.2990899,39360.0,39359.0,0.33046974]
[1645909240544,1.2971883,39360.0,39359.0,0.33046974]
[1645909240844,1.2079383,39360.0,39359.0,0.33046974]
[1645909241347,1.2089383,39360.0,39359.0,0.33046974]
[1645909242644,1.2079383,39360.0,39359.0,0.33046974]
[1645909243097,1.19404101,39360.0,39359.0,0.33046974]
[1645909243301,1.19504101,39360.0,39359.0,0.33046974]